[Event "Early-Titled-Tuesday-Blitz-October-10-2023"]
[Site "Chess.com"]
[Date "2023.10.10"]
[Round "1"]
[White "Barmen_EV"]
[Black "GadimbayliA"]
[Result "0-1"]
[WhiteElo "2476"]
[BlackElo "2843"]
[TimeControl "180+1"]
[EndTime "8:08:23 PDT"]
[Termination "GadimbayliA won by checkmate"]

1. e4 {[%clk 0:03:00.9]} 1... e5 {[%clk 0:02:58.7]} 2. Nf3 {[%clk 0:03:00.4]}
2... d5 {[%clk 0:02:59]} 3. Nxe5 {[%clk 0:02:57]} 3... Bd6 {[%clk 0:02:58.7]} 4.
d4 {[%clk 0:02:51.2]} 4... dxe4 {[%clk 0:02:59]} 5. Nc4 {[%clk 0:02:51.5]} 5...
Nf6 {[%clk 0:02:59.1]} 6. Be2 {[%clk 0:02:49.9]} 6... O-O {[%clk 0:03:00]} 7.
O-O {[%clk 0:02:50.4]} 7... Nc6 {[%clk 0:03:00.7]} 8. Ne3 {[%clk 0:02:47.7]}
8... Nxd4 {[%clk 0:03:00.6]} 9. Bc4 {[%clk 0:02:39.3]} 9... Be6 {[%clk
0:02:58.6]} 10. Kh1 {[%clk 0:02:34.5]} 10... Be5 {[%clk 0:02:47.7]} 11. Nc3
{[%clk 0:02:29.4]} 11... Re8 {[%clk 0:02:44.5]} 12. Bxe6 {[%clk 0:02:21.5]}
12... Nxe6 {[%clk 0:02:45.4]} 13. Qe1 {[%clk 0:02:02.3]} 13... Qe7 {[%clk
0:02:44.2]} 14. a3 {[%clk 0:01:24.9]} 14... Rad8 {[%clk 0:02:43.2]} 15. Nf5
{[%clk 0:01:24.6]} 15... Qc5 {[%clk 0:02:40.5]} 16. Nxe4 {[%clk 0:01:20.9]}
16... Qxc2 {[%clk 0:02:38]} 17. Nxf6+ {[%clk 0:01:10.5]} 17... Bxf6 {[%clk
0:02:38.9]} 18. Ne3 {[%clk 0:01:01.5]} 18... Qb3 {[%clk 0:02:39]} 19. Qe2 {[%clk
0:00:59.3]} 19... Nd4 {[%clk 0:02:32.7]} 20. Qg4 {[%clk 0:00:59.5]} 20... Nc2
{[%clk 0:02:23.2]} 21. Nxc2 {[%clk 0:00:39.2]} 21... Qxc2 {[%clk 0:02:24.1]} 22.
Be3 {[%clk 0:00:35]} 22... Bxb2 {[%clk 0:02:22.4]} 23. Rab1 {[%clk 0:00:33.8]}
23... b6 {[%clk 0:02:20]} 24. Qg3 {[%clk 0:00:25.4]} 24... Be5 {[%clk
0:02:12.5]} 25. Qf3 {[%clk 0:00:24.7]} 25... c5 {[%clk 0:02:09]} 26. Rfd1 {[%clk
0:00:21.9]} 26... h6 {[%clk 0:02:04.3]} 27. h3 {[%clk 0:00:21.9]} 27... Qa4
{[%clk 0:02:03.8]} 28. Qh5 {[%clk 0:00:18]} 28... Bf6 {[%clk 0:01:58.9]} 29. Qf3
{[%clk 0:00:16.7]} 29... Bd4 {[%clk 0:01:58.1]} 30. Qg4 {[%clk 0:00:11.9]} 30...
Qxa3 {[%clk 0:01:38.8]} 31. Bxh6 {[%clk 0:00:11]} 31... Bf6 {[%clk 0:01:39.1]}
32. Bg5 {[%clk 0:00:08.2]} 32... Qc3 {[%clk 0:01:22.7]} 33. Rbc1 {[%clk
0:00:05.7]} 33... Rxd1+ {[%clk 0:01:18.4]} 34. Rxd1 {[%clk 0:00:06.6]} 34...
Bxg5 {[%clk 0:01:13.3]} 35. Qxg5 {[%clk 0:00:06.2]} 35... Re1+ {[%clk
0:00:48.2]} 36. Rxe1 {[%clk 0:00:06.2]} 36... Qxe1+ {[%clk 0:00:49.1]} 37. Kh2
{[%clk 0:00:07.1]} 37... f6 {[%clk 0:00:49.8]} 38. Qd5+ {[%clk 0:00:07.1]} 38...
Kf8 {[%clk 0:00:50.4]} 39. Qa8+ {[%clk 0:00:04.4]} 39... Qe8 {[%clk 0:00:49.1]}
40. Qxa7 {[%clk 0:00:05]} 40... Qc6 {[%clk 0:00:49.1]} 41. Qb8+ {[%clk
0:00:04.7]} 41... Kf7 {[%clk 0:00:49.8]} 42. Qa7+ {[%clk 0:00:04.7]} 42... Kg6
{[%clk 0:00:50.1]} 43. Qa2 {[%clk 0:00:03.3]} 43... c4 {[%clk 0:00:50.3]} 44.
Qc2+ {[%clk 0:00:03.7]} 44... Kf7 {[%clk 0:00:51]} 45. Qc3 {[%clk 0:00:03.7]}
45... b5 {[%clk 0:00:50.8]} 46. h4 {[%clk 0:00:04.1]} 46... Qc5 {[%clk
0:00:51.2]} 47. Kg1 {[%clk 0:00:04.3]} 47... b4 {[%clk 0:00:51.4]} 48. Qf3
{[%clk 0:00:04.4]} 48... c3 {[%clk 0:00:48.7]} 49. Qb7+ {[%clk 0:00:04.3]} 49...
Ke6 {[%clk 0:00:49.4]} 50. Qe4+ {[%clk 0:00:04.7]} 50... Kd6 {[%clk 0:00:49.2]}
51. Qf4+ {[%clk 0:00:04.8]} 51... Kc6 {[%clk 0:00:49.5]} 52. Qe4+ {[%clk
0:00:05.1]} 52... Kb6 {[%clk 0:00:50.1]} 53. Qe6+ {[%clk 0:00:04.9]} 53... Ka5
{[%clk 0:00:46.5]} 54. Qa2+ {[%clk 0:00:04.5]} 54... Kb5 {[%clk 0:00:47.1]} 55.
Qe2+ {[%clk 0:00:05.2]} 55... Kb6 {[%clk 0:00:36.1]} 56. Qe6+ {[%clk 0:00:05.4]}
56... Qc6 {[%clk 0:00:36.9]} 57. Qe3+ {[%clk 0:00:04.8]} 57... Kb5 {[%clk
0:00:37.5]} 58. Qe2+ {[%clk 0:00:05]} 58... Kc5 {[%clk 0:00:35.5]} 59. Qe7+
{[%clk 0:00:04.8]} 59... Kc4 {[%clk 0:00:35.7]} 60. Qf7+ {[%clk 0:00:04.6]}
60... Kd3 {[%clk 0:00:35.6]} 61. Qxg7 {[%clk 0:00:02.3]} 61... c2 {[%clk
0:00:35.4]} 62. Qg3+ {[%clk 0:00:02.9]} 62... Kd2 {[%clk 0:00:25.4]} 63. Qe3+
{[%clk 0:00:03.2]} 63... Kd1 {[%clk 0:00:26]} 64. Qd3+ {[%clk 0:00:02.5]} 64...
Kc1 {[%clk 0:00:26.6]} 65. Qe3+ {[%clk 0:00:02.5]} 65... Kb2 {[%clk 0:00:26.9]}
66. Qd4+ {[%clk 0:00:02.7]} 66... Qc3 {[%clk 0:00:27.5]} 67. Qxb4+ {[%clk
0:00:01.3]} 67... Qxb4 {[%clk 0:00:27.3]} 68. h5 {[%clk 0:00:02.2]} 68... c1=Q+
{[%clk 0:00:27.7]} 69. Kh2 {[%clk 0:00:03.1]} 69... Qbf4+ {[%clk 0:00:28.1]} 70.
g3 {[%clk 0:00:03.5]} 70... Qxf2+ {[%clk 0:00:29]} 71. Kh3 {[%clk 0:00:04.4]}
71... Qg5 {[%clk 0:00:29.1]} 72. g4 {[%clk 0:00:04.7]} 72... Qge3# {[%clk
0:00:29.7]} 0-1

[Event "Early-Titled-Tuesday-Blitz-October-10-2023"]
[Site "Chess.com"]
[Date "2023.10.10"]
[Round "1"]
[White "sofaceindisguise"]
[Black "komogro"]
[Result "1-0"]
[WhiteElo "2814"]
[BlackElo "2456"]
[TimeControl "180+1"]
[EndTime "8:08:24 PDT"]
[Termination "sofaceindisguise won on time"]

1. d4 {[%clk 0:03:00]} 1... Nf6 {[%clk 0:03:00]} 2. Nf3 {[%clk 0:03:00.3]} 2...
g6 {[%clk 0:03:00]} 3. Bf4 {[%clk 0:03:00.7]} 3... Bg7 {[%clk 0:02:59.8]} 4. Nc3
{[%clk 0:02:59.2]} 4... O-O {[%clk 0:03:00]} 5. e3 {[%clk 0:02:59.5]} 5... c5
{[%clk 0:02:59.5]} 6. d5 {[%clk 0:02:59.8]} 6... d6 {[%clk 0:02:59.6]} 7. h3
{[%clk 0:02:58.7]} 7... a6 {[%clk 0:02:59.5]} 8. a4 {[%clk 0:02:58.7]} 8... Qa5
{[%clk 0:02:52.5]} 9. Nd2 {[%clk 0:02:36.1]} 9... Nfd7 {[%clk 0:02:37.4]} 10.
Ra3 {[%clk 0:02:22.5]} 10... Qc7 {[%clk 0:02:30]} 11. Be2 {[%clk 0:02:18.3]}
11... Ne5 {[%clk 0:02:28.6]} 12. O-O {[%clk 0:02:17.5]} 12... e6 {[%clk
0:02:28.6]} 13. Bh2 {[%clk 0:02:15.2]} 13... Rd8 {[%clk 0:02:25.8]} 14. Kh1
{[%clk 0:02:13.2]} 14... exd5 {[%clk 0:02:11.5]} 15. Nxd5 {[%clk 0:02:13]} 15...
Qa5 {[%clk 0:02:10.1]} 16. Nc4 {[%clk 0:02:08.5]} 16... Nxc4 {[%clk 0:02:09.8]}
17. Bxc4 {[%clk 0:02:09.4]} 17... Nc6 {[%clk 0:02:01.5]} 18. c3 {[%clk
0:01:59.6]} 18... Be6 {[%clk 0:01:56.5]} 19. b4 {[%clk 0:01:57.4]} 19... cxb4
{[%clk 0:01:56.8]} 20. cxb4 {[%clk 0:01:58]} 20... Nxb4 {[%clk 0:01:57]} 21.
Ne7+ {[%clk 0:01:46.2]} 21... Kf8 {[%clk 0:01:54.2]} 22. Bxe6 {[%clk 0:01:46.7]}
22... Kxe7 {[%clk 0:01:51.2]} 23. Bg4 {[%clk 0:01:41.3]} 23... Nc6 {[%clk
0:01:50.2]} 24. Rb3 {[%clk 0:01:38.6]} 24... b5 {[%clk 0:01:50.2]} 25. axb5
{[%clk 0:01:38.4]} 25... axb5 {[%clk 0:01:51.1]} 26. Qd5 {[%clk 0:01:34.4]}
26... Ne5 {[%clk 0:01:38.3]} 27. Rxb5 {[%clk 0:01:32.3]} 27... Qa2 {[%clk
0:01:30]} 28. Rb3 {[%clk 0:01:11.9]} 28... Kf8 {[%clk 0:01:22.8]} 29. Bd1 {[%clk
0:00:54.6]} 29... h5 {[%clk 0:01:15.7]} 30. Bg3 {[%clk 0:00:53.2]} 30... Kg8
{[%clk 0:01:15.2]} 31. f4 {[%clk 0:00:47.8]} 31... Nd7 {[%clk 0:01:10.9]} 32. f5
{[%clk 0:00:47.9]} 32... Ra5 {[%clk 0:00:57.3]} 33. Qd3 {[%clk 0:00:42.1]} 33...
Nc5 {[%clk 0:00:52.6]} 34. Qc4 {[%clk 0:00:34.9]} 34... d5 {[%clk 0:00:45.8]}
35. Qh4 {[%clk 0:00:32.5]} 35... Re8 {[%clk 0:00:32.1]} 36. fxg6 {[%clk
0:00:31.4]} 36... fxg6 {[%clk 0:00:33]} 37. Qg5 {[%clk 0:00:19.8]} 37... Nxb3
{[%clk 0:00:18.4]} 38. Qxg6 {[%clk 0:00:19.9]} 38... Re7 {[%clk 0:00:18.4]} 39.
Bh4 {[%clk 0:00:09.4]} 39... Raa7 {[%clk 0:00:16.7]} 40. Bxe7 {[%clk 0:00:08.5]}
40... Rxe7 {[%clk 0:00:17.5]} 41. Qd6 {[%clk 0:00:07.9]} 41... Rf7 {[%clk
0:00:16]} 42. Rxf7 {[%clk 0:00:08.3]} 42... Kxf7 {[%clk 0:00:16.4]} 43. Qxd5+
{[%clk 0:00:09]} 43... Kg6 {[%clk 0:00:14.8]} 44. Bxb3 {[%clk 0:00:09.5]} 44...
Qa1+ {[%clk 0:00:14.7]} 45. Kh2 {[%clk 0:00:10.2]} 45... Be5+ {[%clk 0:00:15.3]}
46. g3 {[%clk 0:00:09.9]} 46... Qb2+ {[%clk 0:00:13.7]} 47. Kg1 {[%clk
0:00:10.4]} 47... Qb1+ {[%clk 0:00:11]} 48. Kg2 {[%clk 0:00:10.6]} 48... Qb2+
{[%clk 0:00:11.1]} 49. Kf3 {[%clk 0:00:11.1]} 49... Bf6 {[%clk 0:00:06.6]} 50.
Qf7+ {[%clk 0:00:09.7]} 50... Kh6 {[%clk 0:00:06.3]} 51. Bd5 {[%clk 0:00:10]}
51... Qe5 {[%clk 0:00:06.3]} 52. Be4 {[%clk 0:00:09.9]} 1-0

[Event "Early-Titled-Tuesday-Blitz-October-10-2023"]
[Site "Chess.com"]
[Date "2023.10.10"]
[Round "1"]
[White "vedantgoswami"]
[Black "astralpulse"]
[Result "0-1"]
[WhiteElo "2394"]
[BlackElo "2696"]
[TimeControl "180+1"]
[EndTime "8:08:26 PDT"]
[Termination "astralpulse won on time"]

1. c3 {[%clk 0:02:54.9]} 1... d5 {[%clk 0:02:59.1]} 2. d4 {[%clk 0:02:55.5]}
2... Nf6 {[%clk 0:02:58.9]} 3. Bf4 {[%clk 0:02:55.9]} 3... c6 {[%clk 0:02:53.1]}
4. e3 {[%clk 0:02:54.6]} 4... Bf5 {[%clk 0:02:52.2]} 5. Nf3 {[%clk 0:02:51.9]}
5... Nbd7 {[%clk 0:02:50]} 6. Nbd2 {[%clk 0:02:51.5]} 6... h6 {[%clk 0:02:49.1]}
7. h3 {[%clk 0:02:51.2]} 7... e6 {[%clk 0:02:48.6]} 8. Be2 {[%clk 0:02:49.1]}
8... Be7 {[%clk 0:02:48.6]} 9. O-O {[%clk 0:02:46.9]} 9... O-O {[%clk
0:02:49.1]} 10. Qb3 {[%clk 0:02:43.7]} 10... Qb6 {[%clk 0:02:48]} 11. Rfe1
{[%clk 0:02:43.2]} 11... Ne4 {[%clk 0:02:42.8]} 12. Nxe4 {[%clk 0:02:38.3]}
12... Bxe4 {[%clk 0:02:42.8]} 13. Ne5 {[%clk 0:02:26.5]} 13... Nxe5 {[%clk
0:02:34.6]} 14. Bxe5 {[%clk 0:02:26.1]} 14... Rac8 {[%clk 0:02:26.9]} 15. Qxb6
{[%clk 0:02:21.8]} 15... axb6 {[%clk 0:02:26.5]} 16. c4 {[%clk 0:02:18.7]} 16...
Ra8 {[%clk 0:02:24.2]} 17. a3 {[%clk 0:02:16.9]} 17... dxc4 {[%clk 0:02:07.9]}
18. Bxc4 {[%clk 0:02:15.5]} 18... b5 {[%clk 0:02:08.2]} 19. Bf1 {[%clk
0:02:09.3]} 19... f6 {[%clk 0:02:06.8]} 20. Bc7 {[%clk 0:02:04]} 20... Ra6
{[%clk 0:01:55.4]} 21. f3 {[%clk 0:01:53.7]} 21... Bg6 {[%clk 0:01:51]} 22. Rac1
{[%clk 0:01:46.2]} 22... Ra4 {[%clk 0:01:41.1]} 23. Bb6 {[%clk 0:01:41.2]} 23...
Rfa8 {[%clk 0:01:28.4]} 24. Bc5 {[%clk 0:01:36.6]} 24... Kf7 {[%clk 0:01:25.6]}
25. Kf2 {[%clk 0:01:31.5]} 25... Rd8 {[%clk 0:01:16]} 26. Be2 {[%clk 0:01:30.5]}
26... Raa8 {[%clk 0:01:14]} 27. Bd1 {[%clk 0:01:27.2]} 27... Bxc5 {[%clk
0:01:12.2]} 28. Rxc5 {[%clk 0:01:25.8]} 28... Rd6 {[%clk 0:01:10.5]} 29. Bb3
{[%clk 0:01:24.9]} 29... Ke7 {[%clk 0:01:09.1]} 30. Rec1 {[%clk 0:01:21.3]}
30... Rad8 {[%clk 0:01:03.2]} 31. f4 {[%clk 0:01:12.8]} 31... Be4 {[%clk
0:01:01.6]} 32. h4 {[%clk 0:01:07.5]} 32... b6 {[%clk 0:00:52.5]} 33. R5c3
{[%clk 0:01:06]} 33... c5 {[%clk 0:00:52.6]} 34. dxc5 {[%clk 0:00:36.6]} 34...
Rd2+ {[%clk 0:00:51.8]} 35. Kf1 {[%clk 0:00:37.1]} 35... bxc5 {[%clk 0:00:49.9]}
36. Rxc5 {[%clk 0:00:35.2]} 36... Rxb2 {[%clk 0:00:46.3]} 37. Rc7+ {[%clk
0:00:34.9]} 37... Rd7 {[%clk 0:00:46.4]} 38. Bd1 {[%clk 0:00:23.6]} 38... Bxg2+
{[%clk 0:00:42.9]} 39. Ke1 {[%clk 0:00:21.3]} 39... Bd5 {[%clk 0:00:41.2]} 40.
Be2 {[%clk 0:00:19.2]} 40... Kd6 {[%clk 0:00:33.4]} 41. Rxd7+ {[%clk 0:00:17.8]}
41... Kxd7 {[%clk 0:00:33.3]} 42. Kd1 {[%clk 0:00:16.4]} 42... Rb3 {[%clk
0:00:31.3]} 43. Kd2 {[%clk 0:00:13.7]} 43... Kd6 {[%clk 0:00:31.9]} 44. Rc3
{[%clk 0:00:13.2]} 44... Rb2+ {[%clk 0:00:31.3]} 45. Ke1 {[%clk 0:00:12.6]}
45... Rb1+ {[%clk 0:00:28.5]} 46. Kf2 {[%clk 0:00:12.5]} 46... Rb2 {[%clk
0:00:29.2]} 47. Ke1 {[%clk 0:00:11.7]} 47... e5 {[%clk 0:00:29.7]} 48. fxe5+
{[%clk 0:00:10.8]} 48... Kxe5 {[%clk 0:00:29.9]} 49. Bd3 {[%clk 0:00:10.1]}
49... g5 {[%clk 0:00:29.3]} 50. Rc5 {[%clk 0:00:09.8]} 50... Kd6 {[%clk
0:00:22.9]} 51. Rxb5 {[%clk 0:00:09.1]} 51... Ra2 {[%clk 0:00:21.3]} 52. hxg5
{[%clk 0:00:08.3]} 52... fxg5 {[%clk 0:00:20.3]} 53. Ra5 {[%clk 0:00:08.2]}
53... g4 {[%clk 0:00:19.1]} 54. Ra6+ {[%clk 0:00:06.5]} 54... Ke5 {[%clk
0:00:19.2]} 55. Rxh6 {[%clk 0:00:05.6]} 55... g3 {[%clk 0:00:19.7]} 56. Rg6
{[%clk 0:00:05.2]} 56... g2 {[%clk 0:00:19]} 57. e4 {[%clk 0:00:05]} 57... Bxe4
{[%clk 0:00:13.1]} 58. Bxe4 {[%clk 0:00:05]} 58... Kxe4 {[%clk 0:00:13.8]} 59.
a4 {[%clk 0:00:03.1]} 59... Kf3 {[%clk 0:00:12.6]} 60. Rf6+ {[%clk 0:00:02.7]}
60... Kg3 {[%clk 0:00:12.9]} 61. Rg6+ {[%clk 0:00:02.8]} 61... Kh2 {[%clk
0:00:12.3]} 62. Rh6+ {[%clk 0:00:02.8]} 62... Kg1 {[%clk 0:00:12.2]} 63. Rh4
{[%clk 0:00:02.6]} 63... Ra3 {[%clk 0:00:10.8]} 64. Ke2 {[%clk 0:00:01.2]} 64...
Rb3 {[%clk 0:00:10.7]} 65. Kd2 {[%clk 0:00:01.2]} 65... Rb7 {[%clk 0:00:10.1]}
0-1

[Event "Early-Titled-Tuesday-Blitz-October-10-2023"]
[Site "Chess.com"]
[Date "2023.10.10"]
[Round "1"]
[White "topin8"]
[Black "Korchmar_Vasiliy"]
[Result "1/2-1/2"]
[WhiteElo "2426"]
[BlackElo "2718"]
[TimeControl "180+1"]
[EndTime "8:08:31 PDT"]
[Termination "Game drawn - insufficient material"]

1. e4 {[%clk 0:02:46.5]} 1... c5 {[%clk 0:02:59.2]} 2. Nf3 {[%clk 0:02:46.4]}
2... d6 {[%clk 0:02:59.2]} 3. c3 {[%clk 0:02:45]} 3... Nf6 {[%clk 0:02:58.1]} 4.
Be2 {[%clk 0:02:45.4]} 4... g6 {[%clk 0:02:56.9]} 5. O-O {[%clk 0:02:44.4]} 5...
Bg7 {[%clk 0:02:56.4]} 6. Bb5+ {[%clk 0:02:44.9]} 6... Bd7 {[%clk 0:02:52.2]} 7.
Bxd7+ {[%clk 0:02:43.4]} 7... Nbxd7 {[%clk 0:02:52.5]} 8. Re1 {[%clk 0:02:42.7]}
8... O-O {[%clk 0:02:43.7]} 9. d4 {[%clk 0:02:42.3]} 9... Rc8 {[%clk 0:02:32.7]}
10. h3 {[%clk 0:01:54]} 10... d5 {[%clk 0:02:16.9]} 11. e5 {[%clk 0:01:27.6]}
11... Ne4 {[%clk 0:02:16.8]} 12. Nbd2 {[%clk 0:01:28.2]} 12... cxd4 {[%clk
0:02:10.9]} 13. cxd4 {[%clk 0:01:25.8]} 13... Nxd2 {[%clk 0:01:40.9]} 14. Bxd2
{[%clk 0:01:25.7]} 14... f6 {[%clk 0:01:41.2]} 15. Bc3 {[%clk 0:01:17]} 15...
fxe5 {[%clk 0:01:39.4]} 16. Nxe5 {[%clk 0:01:12.4]} 16... Nxe5 {[%clk 0:01:32]}
17. dxe5 {[%clk 0:01:13.3]} 17... e6 {[%clk 0:01:31.4]} 18. Qg4 {[%clk
0:01:02.9]} 18... Rf5 {[%clk 0:01:26.3]} 19. Rad1 {[%clk 0:01:03]} 19... Qc7
{[%clk 0:01:09]} 20. Bd4 {[%clk 0:00:59.2]} 20... Qf7 {[%clk 0:01:02.4]} 21. Rc1
{[%clk 0:00:28.8]} 21... Rf8 {[%clk 0:00:44.8]} 22. Qg3 {[%clk 0:00:26.7]} 22...
Bh6 {[%clk 0:00:42.7]} 23. Rc2 {[%clk 0:00:20]} 23... Bf4 {[%clk 0:00:42.8]} 24.
Qc3 {[%clk 0:00:16.4]} 24... Qg7 {[%clk 0:00:32.7]} 25. Qc7 {[%clk 0:00:07.7]}
25... R5f7 {[%clk 0:00:32.4]} 26. Qd6 {[%clk 0:00:08.1]} 26... Re8 {[%clk
0:00:26.1]} 27. g3 {[%clk 0:00:08.4]} 27... Bg5 {[%clk 0:00:25.9]} 28. Bxa7
{[%clk 0:00:08.5]} 28... h5 {[%clk 0:00:25.3]} 29. Bd4 {[%clk 0:00:08.5]} 29...
h4 {[%clk 0:00:25.3]} 30. Kg2 {[%clk 0:00:09]} 30... hxg3 {[%clk 0:00:25.4]} 31.
fxg3 {[%clk 0:00:09.9]} 31... Rd7 {[%clk 0:00:13.7]} 32. Qb6 {[%clk 0:00:09.7]}
32... Bd8 {[%clk 0:00:13.3]} 33. Qb5 {[%clk 0:00:09.3]} 33... Rf8 {[%clk
0:00:13.1]} 34. Rf1 {[%clk 0:00:08.8]} 34... Rxf1 {[%clk 0:00:10.6]} 35. Kxf1
{[%clk 0:00:09.7]} 35... Bc7 {[%clk 0:00:09.8]} 36. Kg2 {[%clk 0:00:09.4]} 36...
Rf7 {[%clk 0:00:03.9]} 37. Qe8+ {[%clk 0:00:09.1]} 37... Kh7 {[%clk 0:00:03.9]}
38. Qxe6 {[%clk 0:00:09.3]} 38... Re7 {[%clk 0:00:03.4]} 39. Qf6 {[%clk
0:00:07.1]} 39... Bxe5 {[%clk 0:00:02.6]} 40. Bxe5 {[%clk 0:00:04.2]} 40... Rxe5
{[%clk 0:00:03.2]} 41. Qxg7+ {[%clk 0:00:04.8]} 41... Kxg7 {[%clk 0:00:03.3]}
42. Rc7+ {[%clk 0:00:05.7]} 42... Kf6 {[%clk 0:00:03.7]} 43. Rxb7 {[%clk
0:00:06.3]} 43... Re2+ {[%clk 0:00:03.7]} 44. Kf3 {[%clk 0:00:06.7]} 44... Rc2
{[%clk 0:00:03.8]} 45. a4 {[%clk 0:00:04.2]} 45... Ke5 {[%clk 0:00:03.7]} 46. a5
{[%clk 0:00:04]} 46... Rc5 {[%clk 0:00:02.5]} 47. b4 {[%clk 0:00:03.2]} 47...
Rc3+ {[%clk 0:00:03]} 48. Kg4 {[%clk 0:00:03.8]} 48... Ra3 {[%clk 0:00:03.1]}
49. Re7+ {[%clk 0:00:03.4]} 49... Kd6 {[%clk 0:00:03]} 50. Rg7 {[%clk
0:00:03.7]} 50... d4 {[%clk 0:00:03]} 51. Rxg6+ {[%clk 0:00:04.2]} 51... Kd5
{[%clk 0:00:03.6]} 52. Rg8 {[%clk 0:00:04.5]} 52... d3 {[%clk 0:00:03.8]} 53.
Rd8+ {[%clk 0:00:04.9]} 53... Kc4 {[%clk 0:00:04]} 54. h4 {[%clk 0:00:04.8]}
54... Ra4 {[%clk 0:00:02.4]} 55. h5 {[%clk 0:00:04.2]} 55... Kc3 {[%clk
0:00:02.8]} 56. h6 {[%clk 0:00:03.2]} 56... d2 {[%clk 0:00:03.5]} 57. Rxd2
{[%clk 0:00:03]} 57... Rxb4+ {[%clk 0:00:03]} 58. Kg5 {[%clk 0:00:02.7]} 58...
Kxd2 {[%clk 0:00:03.6]} 59. h7 {[%clk 0:00:03.2]} 59... Rb8 {[%clk 0:00:03.9]}
60. a6 {[%clk 0:00:03]} 60... Ra8 {[%clk 0:00:03.6]} 61. g4 {[%clk 0:00:02.2]}
61... Ke3 {[%clk 0:00:03.5]} 62. Kh6 {[%clk 0:00:01.7]} 62... Rxa6+ {[%clk
0:00:03.4]} 63. Kg7 {[%clk 0:00:02.1]} 63... Ra7+ {[%clk 0:00:03.8]} 64. Kg8
{[%clk 0:00:02.6]} 64... Rxh7 {[%clk 0:00:03.9]} 65. Kxh7 {[%clk 0:00:02.6]}
65... Kf4 {[%clk 0:00:04.6]} 66. g5 {[%clk 0:00:03.2]} 66... Kxg5 {[%clk
0:00:04.9]} 1/2-1/2

[Event "Early-Titled-Tuesday-Blitz-October-10-2023"]
[Site "Chess.com"]
[Date "2023.10.10"]
[Round "1"]
[White "Mystery2007"]
[Black "AvitalBor"]
[Result "1-0"]
[WhiteElo "2476"]
[BlackElo "2809"]
[TimeControl "180+1"]
[EndTime "8:08:32 PDT"]
[Termination "Mystery2007 won by resignation"]

1. Nf3 {[%clk 0:03:00.1]} 1... d5 {[%clk 0:02:57.6]} 2. d4 {[%clk 0:02:57.8]}
2... Nf6 {[%clk 0:02:57.4]} 3. g3 {[%clk 0:02:58]} 3... Bf5 {[%clk 0:02:57.2]}
4. Bg2 {[%clk 0:02:58.4]} 4... c6 {[%clk 0:02:56.3]} 5. O-O {[%clk 0:02:58.8]}
5... h6 {[%clk 0:02:55]} 6. c4 {[%clk 0:02:59.3]} 6... e6 {[%clk 0:02:54.9]} 7.
Nc3 {[%clk 0:02:58.4]} 7... Be7 {[%clk 0:02:52.5]} 8. b3 {[%clk 0:02:56.8]} 8...
O-O {[%clk 0:02:51.7]} 9. Bb2 {[%clk 0:02:57.3]} 9... Ne4 {[%clk 0:02:51.1]} 10.
Rc1 {[%clk 0:02:55]} 10... Nd7 {[%clk 0:02:50.5]} 11. Nd2 {[%clk 0:02:54.3]}
11... Nxc3 {[%clk 0:02:48]} 12. Bxc3 {[%clk 0:02:54]} 12... Ba3 {[%clk
0:02:48.5]} 13. Ra1 {[%clk 0:02:52.7]} 13... Nf6 {[%clk 0:02:25.9]} 14. Re1
{[%clk 0:02:49.4]} 14... Qe7 {[%clk 0:02:20.5]} 15. e4 {[%clk 0:02:31.6]} 15...
dxe4 {[%clk 0:02:21.4]} 16. Nxe4 {[%clk 0:02:31.5]} 16... Rfd8 {[%clk 0:02:22]}
17. Nxf6+ {[%clk 0:02:28.5]} 17... Qxf6 {[%clk 0:02:22.9]} 18. Qf3 {[%clk
0:02:25.4]} 18... Qg6 {[%clk 0:02:21.5]} 19. Rad1 {[%clk 0:02:20.1]} 19... Bg4
{[%clk 0:02:17]} 20. Qe3 {[%clk 0:02:12.2]} 20... Bxd1 {[%clk 0:02:16.4]} 21.
Rxd1 {[%clk 0:02:12.8]} 21... a5 {[%clk 0:02:15.7]} 22. Be4 {[%clk 0:02:10.7]}
22... f5 {[%clk 0:02:11.6]} 23. Bf3 {[%clk 0:02:02.6]} 23... Bb4 {[%clk
0:02:11.7]} 24. Bb2 {[%clk 0:01:59.1]} 24... Bd6 {[%clk 0:02:06.5]} 25. Re1
{[%clk 0:01:58.1]} 25... Re8 {[%clk 0:02:06.1]} 26. Kg2 {[%clk 0:01:46.3]} 26...
Rad8 {[%clk 0:02:04.8]} 27. Qe2 {[%clk 0:01:30.2]} 27... Qf7 {[%clk 0:02:01.5]}
28. Bh5 {[%clk 0:01:29.2]} 28... g6 {[%clk 0:02:01.5]} 29. Bf3 {[%clk
0:01:29.7]} 29... Bb4 {[%clk 0:02:01.6]} 30. Rd1 {[%clk 0:01:28.9]} 30... Bf8
{[%clk 0:01:58.3]} 31. Qe1 {[%clk 0:01:24.9]} 31... Qc7 {[%clk 0:01:53.6]} 32.
h4 {[%clk 0:01:17.7]} 32... Bg7 {[%clk 0:01:52.1]} 33. Qe3 {[%clk 0:01:14.2]}
33... Kh7 {[%clk 0:01:39.7]} 34. a3 {[%clk 0:01:11]} 34... Re7 {[%clk
0:01:36.9]} 35. Re1 {[%clk 0:01:01.6]} 35... Rde8 {[%clk 0:01:32.8]} 36. Qd2
{[%clk 0:00:47.9]} 36... e5 {[%clk 0:01:27.4]} 37. dxe5 {[%clk 0:00:47]} 37...
Bxe5 {[%clk 0:01:26.9]} 38. h5 {[%clk 0:00:44.2]} 38... Bxb2 {[%clk 0:01:21.3]}
39. hxg6+ {[%clk 0:00:40]} 39... Kxg6 {[%clk 0:01:21]} 40. Rxe7 {[%clk
0:00:37.5]} 40... Rxe7 {[%clk 0:01:20.6]} 41. Qxb2 {[%clk 0:00:36.2]} 41... Qe5
{[%clk 0:01:20.7]} 42. Qd2 {[%clk 0:00:35.3]} 42... Kg7 {[%clk 0:01:18.7]} 43.
Qd8 {[%clk 0:00:33.4]} 43... Qf6 {[%clk 0:01:13.5]} 44. Qxa5 {[%clk 0:00:31.4]}
44... f4 {[%clk 0:01:12.8]} 45. g4 {[%clk 0:00:30.5]} 45... Qg5 {[%clk 0:01:08]}
46. Qc3+ {[%clk 0:00:24.8]} 46... Kg8 {[%clk 0:01:07.8]} 47. Kh3 {[%clk
0:00:16.7]} 47... Qe5 {[%clk 0:00:57.3]} 48. Qd3 {[%clk 0:00:15.8]} 48... Kg7
{[%clk 0:00:56.5]} 49. b4 {[%clk 0:00:15.5]} 49... Qb2 {[%clk 0:00:52.1]} 50.
Kg2 {[%clk 0:00:15.2]} 50... Qa1 {[%clk 0:00:50.1]} 51. Qf5 {[%clk 0:00:13.8]}
51... Qe5 {[%clk 0:00:49.6]} 52. Qd3 {[%clk 0:00:13.7]} 52... Qg5 {[%clk
0:00:47.6]} 53. Kh3 {[%clk 0:00:12.6]} 53... Qg6 {[%clk 0:00:47.2]} 54. Qd4+
{[%clk 0:00:12.3]} 54... Qf6 {[%clk 0:00:47.5]} 55. Qd3 {[%clk 0:00:12.1]} 55...
h5 {[%clk 0:00:46.2]} 56. gxh5 {[%clk 0:00:11.4]} 56... Kh6 {[%clk 0:00:46.3]}
57. c5 {[%clk 0:00:08.3]} 57... Rg7 {[%clk 0:00:42.7]} 58. Bg4 {[%clk
0:00:07.4]} 58... Qe5 {[%clk 0:00:31.9]} 59. Qd6+ {[%clk 0:00:07]} 59... Qxd6
{[%clk 0:00:30.9]} 60. cxd6 {[%clk 0:00:07.9]} 60... Kg5 {[%clk 0:00:26]} 61.
Bc8 {[%clk 0:00:07.4]} 61... b6 {[%clk 0:00:20.5]} 62. a4 {[%clk 0:00:06.8]}
62... Kxh5 {[%clk 0:00:20.1]} 63. a5 {[%clk 0:00:06.5]} 63... bxa5 {[%clk
0:00:20.5]} 64. bxa5 {[%clk 0:00:07.1]} 64... Kg5 {[%clk 0:00:16.2]} 65. d7
{[%clk 0:00:07]} 65... Rg8 {[%clk 0:00:16.7]} 66. a6 {[%clk 0:00:06.9]} 66... f3
{[%clk 0:00:17.3]} 67. Kg3 {[%clk 0:00:06.6]} 67... Kf6+ {[%clk 0:00:17]} 68.
Kxf3 {[%clk 0:00:06.9]} 68... Rg5 {[%clk 0:00:15.1]} 69. d8=Q+ {[%clk
0:00:06.1]} 1-0